fUST/lending_fUST_20240501
["ID","MTS","AMOUNT","RATE_DAILY","PERIOD"]
[325013903,1714504257568,-266.24524035,0.0003589,7]
[325013905,1714504257577,-583.72,0.0003589,7]
[325013907,1714504257587,-500.0,0.0003589,7]
[325013909,1714504257596,-560.52,0.0003589,7]
[325013911,1714504257606,-330.07187551,0.0003589,7]
[325013913,1714504257615,-2317.85,0.0003589,7]
[325013915,1714504257624,-500.0,0.0003589,7]
[325013917,1714504257633,-500.0,0.0003589,7]
[325013919,1714504257642,-637.11,0.0003589,7]
[325013921,1714504257652,-500.0,0.0003589,7]
[325013924,1714504257661,-165.174828,0.00035939,2]
[325013926,1714504257670,-1206.07028754,0.00035953,30]
[325013928,1714504257680,-1000.0,0.00036034,2]
[325013930,1714504257689,-252.62250464,0.00036127,2]
[325013931,1714504257698,-500.0,0.00036164,7]
[325013933,1714504257707,-730.16,0.00036164,7]
[325013935,1714504257716,-886.92,0.00036164,7]
[325013937,1714504257725,-560.1,0.00036164,7]
[325013939,1714504257734,-500.0,0.00036164,7]
[325013941,1714504257743,-500.0,0.00036164,7]
[325013944,1714504257752,-624.72,0.00036164,7]
[325013946,1714504257764,-500.0,0.00036164,7]
[325013948,1714504257774,-500.0,0.00036164,7]
[325013950,1714504257786,-500.0,0.00036164,7]
[325013951,1714504257796,-500.0,0.00036164,7]
[325013953,1714504257805,-566.67,0.00036164,7]
[325013955,1714504257814,-500.0,0.00036164,7]
[325013958,1714504257824,-510.48,0.00036164,7]
[325013960,1714504257833,-500.0,0.00036164,7]
[325013961,1714504257842,-712.4,0.00036164,7]
[325013963,1714504257851,-2234.6,0.00036164,7]
[325013966,1714504257862,-604.01,0.00036164,7]
[325013968,1714504257871,-500.0,0.00036164,7]
[325013969,1714504257880,-572.86,0.00036164,7]
[325013971,1714504257894,-500.0,0.00036164,7]
[325013974,1714504257903,-1108.83,0.00036164,7]
[325013976,1714504257914,-500.0,0.00036164,7]
[325013978,1714504257927,-1236.29,0.00036164,7]
[325013980,1714504257936,-734.06,0.00036164,7]
[325013982,1714504257946,-500.0,0.00036164,7]
[325013984,1714504257955,-509.18,0.00036164,7]
[325013986,1714504257964,-583.24,0.00036164,7]
[325013988,1714504257973,-725.26,0.00036164,7]
[325013990,1714504257982,-890.23,0.00036164,7]
[325013992,1714504257993,-359.98803871,0.00036164,7]
[325013994,1714504258002,-155.28,0.00036164,7]
[325013996,1714504258012,-583.72,0.00036164,7]
[325013998,1714504258021,-560.52,0.00036164,7]
[325014000,1714504258031,-623.98318515,0.00036164,7]
[325014002,1714504258040,-2317.85,0.00036164,7]
[325014004,1714504258049,-500.0,0.00036164,7]
[325014006,1714504258059,-500.0,0.00036164,7]
[325014008,1714504258068,-637.11,0.00036164,7]
[325014010,1714504258078,-500.0,0.00036164,7]
[325014012,1714504258087,-498.28881146,0.00036193,7]
[325014014,1714504258098,-500.0,0.00036438,7]
[325014016,1714504258108,-730.16,0.00036438,7]
[325014018,1714504258117,-886.92,0.00036438,7]
[325014029,1714504258204,-560.1,0.00036438,7]
[325014031,1714504258213,-300.80735457,0.00036438,7]
[325014033,1714504258222,-500.0,0.00036438,7]
[325014035,1714504258231,-624.72,0.00036438,7]
[325014037,1714504258241,-500.0,0.00036438,7]
[325014039,1714504258251,-432.29698038,0.00036438,7]
[325014041,1714504258261,-622.40696446,0.00036438,7]
[325014044,1714504258272,-500.0,0.00036438,7]
[325014046,1714504258284,-566.67,0.00036438,7]
[325014047,1714504258294,-500.0,0.00036438,7]
[325014049,1714504258303,-510.48,0.00036438,7]
[325014052,1714504258314,-500.0,0.00036438,7]
[325014054,1714504258323,-712.4,0.00036438,7]
[325014056,1714504258332,-2234.6,0.00036438,7]
[325014058,1714504258342,-604.01,0.00036438,7]
[325014060,1714504258351,-500.0,0.00036438,7]
[325014062,1714504258360,-572.86,0.00036438,7]
[325014064,1714504258369,-500.0,0.00036438,7]
[325014066,1714504258378,-1108.83,0.00036438,7]
[325014068,1714504258387,-590.30798627,0.00036438,7]
[325014070,1714504258397,-1236.29,0.00036438,7]
[325014072,1714504258407,-151.0,0.00036438,2]
[325014074,1714504258415,-734.06,0.00036438,7]
[325014076,1714504258425,-646.72,0.00036438,7]
[325014078,1714504258434,-151.0,0.00036438,2]
[325014080,1714504258444,-435.126312,0.00036438,2]
[325014082,1714504258453,-435.126312,0.00036438,2]
[325014083,1714504258462,-509.18,0.00036438,7]
[325014086,1714504258472,-151.0,0.00036438,2]
[325014087,1714504258481,-151.068906,0.00036438,2]
[325014089,1714504258490,-583.24,0.00036438,7]
[325014091,1714504258499,-725.26,0.00036438,7]
[325014094,1714504258509,-890.23,0.00036438,7]
[325014096,1714504258519,-3080.31431,0.00036438,2]
[325014098,1714504258528,-3080.31431,0.00036438,2]
[325014100,1714504258538,-556.231779,0.00036438,2]
[325014102,1714504258547,-583.72,0.00036438,7]
[325014104,1714504258556,-556.231779,0.00036438,2]
[325014106,1714504258566,-191.380256,0.00036438,2]
[325014108,1714504258575,-191.380256,0.00036438,2]
[325014110,1714504258584,-560.52,0.00036438,7]
[325014112,1714504258593,-2317.85,0.00036438,7]
[325014114,1714504258603,-500.0,0.00036438,7]
[325014116,1714504258612,-500.0,0.00036438,7]
[325014118,1714504258622,-637.11,0.00036438,7]
[325014120,1714504258631,-500.0,0.00036438,7]
[325014122,1714504258640,-629.7,0.00036508,14]
[325014124,1714504258649,-500.0,0.00036712,7]
[325014126,1714504258658,-730.16,0.00036712,7]
[325014128,1714504258667,-886.92,0.00036712,7]
[325014130,1714504258677,-560.1,0.00036712,7]
[325014132,1714504258686,-500.0,0.00036712,7]
[325014134,1714504258695,-624.72,0.00036712,7]
[325014136,1714504258705,-500.0,0.00036712,7]
[325014138,1714504258714,-500.0,0.00036712,7]
[325014140,1714504258723,-566.67,0.00036712,7]
[325014142,1714504258732,-500.0,0.00036712,7]
[325014144,1714504258742,-510.48,0.00036712,7]
[325014146,1714504258752,-202.9,0.00036712,7]
[325014148,1714504258762,-712.4,0.00036712,7]
[325014150,1714504258771,-2234.6,0.00036712,7]
[325014152,1714504258781,-604.01,0.00036712,7]
[325014154,1714504258791,-500.0,0.00036712,7]
[325014156,1714504258800,-151.0,0.00036712,2]
[325014159,1714504258809,-572.86,0.00036712,7]
[325014161,1714504258819,-580.82,0.00036712,7]
[325014162,1714504258828,-450.179339,0.00036712,2]
[325014164,1714504258838,-151.0,0.00036712,2]
[325014166,1714504258847,-450.179339,0.00036712,2]
[325014168,1714504258856,-151.0,0.00036712,2]
[325014170,1714504258865,-1108.83,0.00036712,7]
[325014173,1714504258875,-151.0,0.00036712,2]
[325014175,1714504258884,-151.0,0.00036712,2]
[325014177,1714504258893,-257.65838,0.00036712,2]
[325014179,1714504258903,-480.985142,0.00036712,2]
[325014181,1714504258913,-480.985142,0.00036712,2]
[325014183,1714504258924,-160.103392,0.00036712,2]
[325014185,1714504258935,-257.65838,0.00036712,2]
[325014187,1714504258945,-1236.29,0.00036712,7]
[325014189,1714504258954,-734.06,0.00036712,7]
[325014191,1714504258963,-509.18,0.00036712,7]
[325014193,1714504258974,-583.24,0.00036712,7]
[325014195,1714504258983,-725.26,0.00036712,7]
[325014197,1714504258992,-890.23,0.00036712,7]
[325014199,1714504259003,-583.72,0.00036712,7]
[325014201,1714504259012,-560.52,0.00036712,7]
[325014203,1714504259021,-2317.85,0.00036712,7]
[325014205,1714504259031,-500.0,0.00036712,7]
[325014207,1714504259040,-177.74878896,0.00036712,7]
[325014209,1714504259050,-637.11,0.00036712,7]
[325014211,1714504259059,-500.0,0.00036712,7]
[325014212,1714504259067,-1000.0,0.00036814,2]
[325014214,1714504259076,-1000.0,0.00036948,2]
[325014217,1714504259086,-1203.1,0.00036985,55]
[325014219,1714504259096,-500.0,0.00036986,7]
[325014221,1714504259105,-730.16,0.00036986,7]
[325014223,1714504259115,-886.92,0.00036986,7]
[325014224,1714504259124,-560.1,0.00036986,7]
[325014227,1714504259133,-500.0,0.00036986,7]
[325014228,1714504259142,-624.72,0.00036986,7]
[325014231,1714504259152,-613.42739274,0.00036986,7]
[325014232,1714504259161,-500.0,0.00036986,7]
[325014234,1714504259169,-566.67,0.00036986,7]
[325014236,1714504259178,-500.0,0.00036986,7]
[325014238,1714504259187,-510.48,0.00036986,7]
[325014240,1714504259196,-712.4,0.00036986,7]
[325014242,1714504259205,-2234.6,0.00036986,7]
[325014244,1714504259215,-604.01,0.00036986,7]
[325014246,1714504259224,-528.44056883,0.00036986,7]
[325014248,1714504259233,-572.86,0.00036986,7]
[325014250,1714504259242,-1108.83,0.00036986,7]
[325014252,1714504259251,-1236.29,0.00036986,7]
[325014254,1714504259261,-734.06,0.00036986,7]
[325014256,1714504259270,-509.18,0.00036986,7]
[325014258,1714504259281,-583.24,0.00036986,7]
[325014260,1714504259290,-725.26,0.00036986,7]
[325014262,1714504259299,-890.23,0.00036986,7]
[325014264,1714504259308,-583.72,0.00036986,7]
[325014266,1714504259317,-560.52,0.00036986,7]
[325014268,1714504259326,-2317.85,0.00036986,7]
[325014270,1714504259335,-500.0,0.00036986,7]
[325014272,1714504259345,-637.11,0.00036986,7]
[325014274,1714504259354,-500.0,0.00036986,7]
[325014276,1714504259363,-2927.07021767,0.00037,2]
[325014279,1714504259373,-9012.68282379,0.0003726,30]
[325014280,1714504259382,-508.99971659,0.0003726,7]
[325014282,1714504259392,-730.16,0.0003726,7]
[325014285,1714504259401,-886.92,0.0003726,7]
[325014287,1714504259410,-560.1,0.0003726,7]
[325014289,1714504259419,-500.0,0.0003726,7]
[325014291,1714504259428,-624.72,0.0003726,7]
[325014293,1714504259437,-236.01354817,0.0003726,7]
[325014294,1714504259447,-566.67,0.0003726,7]
[325014296,1714504259456,-500.0,0.0003726,7]
[325014298,1714504259465,-510.48,0.0003726,7]
[325014300,1714504259474,-712.4,0.0003726,7]
[325014302,1714504259483,-2234.6,0.0003726,7]
[325014304,1714504259493,-604.01,0.0003726,7]
[325014306,1714504259502,-572.86,0.0003726,7]
[325014309,1714504259511,-1108.83,0.0003726,7]
[325014311,1714504259523,-1236.29,0.0003726,7]
[325014313,1714504259533,-734.06,0.0003726,7]
[325014315,1714504259542,-509.18,0.0003726,7]
[325014317,1714504259552,-583.24,0.0003726,7]
[325014319,1714504259561,-725.26,0.0003726,7]
[325014321,1714504259570,-890.23,0.0003726,7]
[325014323,1714504259579,-583.72,0.0003726,7]
[325014325,1714504259588,-560.52,0.0003726,7]
[325014326,1714504259598,-2317.85,0.0003726,7]
[325014328,1714504259606,-500.0,0.0003726,7]
[325014330,1714504259616,-637.11,0.0003726,7]
[325014332,1714504259625,-500.0,0.0003726,7]
[325014334,1714504259634,-153.0,0.0003729,2]
[325014336,1714504259644,-498.28881146,0.00037321,8]
[325014338,1714504259653,-1006.0,0.0003743,5]
[325014340,1714504259662,-629.7,0.00037472,14]
[325014342,1714504259671,-3542.326258,0.000375,32]
[325014344,1714504259680,-1746.92998369,0.00037529,7]
[325014346,1714504259689,-153.89720645,0.0003753,7]
[325014348,1714504259699,-730.16,0.00037534,7]
[325014350,1714504259708,-886.92,0.00037534,7]
[325014352,1714504259717,-560.1,0.00037534,7]
[325014354,1714504259726,-432.08132683,0.00037534,7]
[325014356,1714504259735,-624.72,0.00037534,7]
[325014358,1714504259744,-566.67,0.00037534,7]
[325014360,1714504259754,-500.0,0.00037534,7]
[325014362,1714504259765,-510.48,0.00037534,7]
[325014364,1714504259775,-712.4,0.00037534,7]
[325014366,1714504259785,-2234.6,0.00037534,7]
[325014368,1714504259795,-604.01,0.00037534,7]
[325014370,1714504259804,-572.86,0.00037534,7]
[325014372,1714504259813,-1108.83,0.00037534,7]
[325014378,1714504259898,-1236.29,0.00037534,7]
[325014379,1714504259908,-734.06,0.00037534,7]
[325014380,1714504259919,-509.18,0.00037534,7]
[325014381,1714504259929,-583.24,0.00037534,7]
[325014382,1714504259938,-725.26,0.00037534,7]
[325014383,1714504259947,-890.23,0.00037534,7]
[325014384,1714504259957,-583.72,0.00037534,7]
[325014385,1714504259967,-560.52,0.00037534,7]
[325014386,1714504259976,-2317.85,0.00037534,7]
[325014387,1714504259985,-425.46411324,0.00037534,7]
[325014388,1714504259994,-637.11,0.00037534,7]
[325014390,1714504260005,-151.0,0.00037534,2]
[325014391,1714504260014,-335.91813179,0.00037534,7]
[325014392,1714504260024,-229.100535,0.00037564,2]
[325014394,1714504260034,-203.8071857,0.00037564,2]
[325014396,1714504260043,-153.0,0.00037564,2]
[325014398,1714504260053,-153.0,0.00037564,2]
[325014400,1714504260063,-153.0,0.00037564,2]
[325014402,1714504260072,-153.0,0.00037564,2]
[325014404,1714504260082,-153.0,0.00037564,2]
[325014406,1714504260092,-153.0,0.00037564,2]
[325014408,1714504260102,-154.64623115,0.00037569,7]
[325014410,1714504260111,-446.83455771,0.00037579,7]
[325014412,1714504260121,-446.83455771,0.00037586,7]
[325014414,1714504260131,-1203.1,0.00037604,58]
[325014416,1714504260140,-1746.92998369,0.00037657,7]
[325014418,1714504260149,-154.64623115,0.0003767,7]
[325014420,1714504260158,-1746.92998369,0.00037676,7]
[325014422,1714504260168,-417.0,0.00037694,2]
[325014424,1714504260178,-152.78647308,0.00037728,7]
[325014426,1714504260187,-1746.92998369,0.00037734,7]
[325014428,1714504260195,-730.16,0.00037808,7]
[325014430,1714504260205,-886.92,0.00037808,7]
[325014432,1714504260215,-560.1,0.00037808,7]
[325014434,1714504260224,-624.72,0.00037808,7]
[325014436,1714504260233,-566.67,0.00037808,7]
[325014438,1714504260243,-500.0,0.00037808,7]
[325014440,1714504260253,-510.48,0.00037808,7]
[325014442,1714504260263,-712.4,0.00037808,7]
[325014443,1714504260271,-2234.6,0.00037808,7]
[325014445,1714504260283,-604.01,0.00037808,7]
[325014447,1714504260292,-572.86,0.00037808,7]
[325014450,1714504260302,-1108.83,0.00037808,7]
[325014452,1714504260312,-1236.29,0.00037808,7]
[325014454,1714504260321,-734.06,0.00037808,7]
[325014455,1714504260331,-509.18,0.00037808,7]
[325014458,1714504260341,-583.24,0.00037808,7]
[325014460,1714504260350,-725.26,0.00037808,7]
[325014462,1714504260360,-890.23,0.00037808,7]
[325014464,1714504260370,-583.72,0.00037808,7]
[325014465,1714504260379,-560.52,0.00037808,7]
[325014467,1714504260389,-2317.85,0.00037808,7]
[325014470,1714504260399,-637.11,0.00037808,7]
[325014472,1714504260409,-446.83455771,0.00037843,7]
[325014474,1714504260418,-446.83455771,0.0003793,7]
[325014476,1714504260429,-446.83455771,0.00037955,7]
[325014478,1714504260439,-152.78647308,0.00037981,7]
[325014480,1714504260450,-1746.92998369,0.00037992,7]
[325014482,1714504260459,-446.83455771,0.00037993,7]
[325014484,1714504260469,-154.64623115,0.00037995,7]
[325014486,1714504260479,-1004.97453702,0.00038,7]
[325014488,1714504260488,-17966.21659743,0.00038,90]
[325014490,1714504260497,-460.66945341,0.00038,30]
[325014492,1714504260507,-377.0,0.00038,2]
[325014494,1714504260517,-153.21482082,0.00038002,7]
[325014496,1714504260526,-446.83455771,0.00038003,7]
[325014498,1714504260537,-1746.92998369,0.00038024,7]
[325014500,1714504260546,-153.89720645,0.00038034,7]
[325014502,1714504260555,-156.96846278,0.00038048,7]
[325014504,1714504260565,-1203.1,0.00038081,61]
[325014506,1714504260575,-730.36968568,0.00038082,7]
[325014508,1714504260584,-887.13,0.00038082,7]
[325014510,1714504260594,-560.19961965,0.00038082,7]
[325014512,1714504260603,-624.83730852,0.00038082,7]
[325014514,1714504260612,-566.72224918,0.00038082,7]
[325014516,1714504260621,-395.9366854,0.00038082,7]
[325014518,1714504260631,-510.68310698,0.00038082,7]
[325014520,1714504260641,-940.872597,0.00038082,2]
[325014522,1714504260650,-940.872597,0.00038082,2]
[325014524,1714504260659,-712.52617151,0.00038082,7]
[325014526,1714504260668,-151.0,0.00038082,2]
[325014528,1714504260678,-2234.75875689,0.00038082,7]
[325014530,1714504260687,-151.0,0.00038082,2]
[325014532,1714504260696,-168.762319,0.00038082,2]
[325014534,1714504260706,-168.762319,0.00038082,2]
[325014536,1714504260715,-604.05459346,0.00038082,7]
[325014538,1714504260725,-573.04173178,0.00038082,7]
[325014540,1714504260734,-154.749495,0.00038082,2]
[325014542,1714504260743,-154.749495,0.00038082,2]
[325014544,1714504260752,-151.0,0.00038082,2]
[325014546,1714504260762,-1108.90672193,0.00038082,7]
[325014548,1714504260772,-1236.41009695,0.00038082,7]
[325014550,1714504260784,-734.06986836,0.00038082,7]
[325014552,1714504260793,-509.18748531,0.00038082,7]
[325014554,1714504260803,-583.38683608,0.00038082,7]
[325014556,1714504260812,-725.34997477,0.00038082,7]
[325014558,1714504260822,-890.33698322,0.00038082,7]
[325014560,1714504260831,-583.72312837,0.00038082,7]
[325014562,1714504260840,-560.72700869,0.00038082,7]
[325014564,1714504260850,-2317.86668114,0.00038082,7]
[325014566,1714504260859,-637.13914682,0.00038082,7]
[325014568,1714504260870,-588.0,0.000381,2]
[325014570,1714504260879,-154.64623115,0.0003811,7]
[325014572,1714504260888,-153.0,0.00038112,2]
[325014574,1714504260898,-153.0,0.00038112,2]
[325014576,1714504260908,-153.0,0.00038112,2]
[325014578,1714504260920,-153.89720645,0.00038113,7]
[325014580,1714504260931,-153.21482082,0.0003816,7]
[325014582,1714504260940,-446.83455771,0.00038167,7]
[325014584,1714504260949,-154.64623115,0.00038174,7]
[325014586,1714504260959,-1746.92998369,0.00038186,7]
[325014588,1714504260968,-153.89720645,0.0003819,7]
[325014590,1714504260977,-1746.92998369,0.0003819,7]
[325014592,1714504260987,-1746.92998369,0.00038245,7]
[325014594,1714504260997,-1746.92998369,0.00038246,7]
[325014596,1714504261007,-153.0,0.00038249,2]
[325014598,1714504261016,-153.0,0.00038249,2]
[325014600,1714504261025,-153.0,0.00038249,2]
[325014602,1714504261037,-209.24514261,0.00038249,15]
[325014604,1714504261047,-446.83455771,0.00038322,7]
[325014606,1714504261056,-153.21482082,0.00038325,7]
[325014608,1714504261065,-567.30408737,0.00038356,16]
[325014610,1714504261074,-1746.92998369,0.00038365,7]
[325014612,1714504261084,-154.64623115,0.00038376,7]
[325014614,1714504261094,-382.0249122,0.00038386,2]
[325014616,1714504261103,-153.0,0.00038386,2]
[325014618,1714504261112,-306.0,0.00038386,2]
[325014620,1714504261121,-153.0,0.00038386,2]
[325014622,1714504261131,-153.0,0.00038386,2]
[325014624,1714504261140,-153.0,0.00038386,2]
[325014626,1714504261150,-153.0,0.00038386,2]
[325014628,1714504261159,-153.0,0.00038386,2]
[325014630,1714504261169,-153.0,0.00038386,2]
[325014632,1714504261178,-153.0,0.00038386,2]
[325014634,1714504261187,-153.0,0.00038386,2]
[325014636,1714504261196,-153.0,0.00038386,2]
[325014638,1714504261206,-153.0,0.00038386,2]
[325014640,1714504261216,-153.0,0.00038386,2]
[325014642,1714504261225,-153.0,0.00038386,2]
[325014644,1714504261235,-153.0,0.00038386,2]
[325014646,1714504261245,-153.0,0.00038386,2]
[325014648,1714504261254,-153.0,0.00038386,2]
[325014650,1714504261263,-153.0,0.00038387,2]
[325014652,1714504261272,-203.8071857,0.00038387,2]
[325014654,1714504261283,-153.0,0.00038387,2]
[325014656,1714504261292,-153.0,0.00038387,2]
[325014658,1714504261301,-203.8071857,0.00038387,2]
[325014660,1714504261310,-153.0,0.00038387,2]
[325014662,1714504261319,-153.0,0.00038387,2]
[325014664,1714504261329,-153.0,0.00038387,2]
[325014666,1714504261338,-153.0,0.00038387,2]
[325014668,1714504261348,-153.0,0.00038387,2]
[325014670,1714504261357,-203.8071857,0.00038387,2]
[325014672,1714504261367,-153.0,0.00038387,2]
[325014674,1714504261376,-153.0,0.00038387,2]
[325014676,1714504261386,-153.0,0.00038387,2]
[325014678,1714504261396,-203.8071857,0.00038387,2]
[325014680,1714504261406,-153.0,0.00038387,2]
[325014690,1714504261483,-153.0,0.00038387,2]
[325014692,1714504261500,-153.0,0.00038387,2]
[325014694,1714504261509,-153.0,0.00038387,2]
[325014696,1714504261519,-203.8071857,0.00038387,2]
[325014698,1714504261528,-152.95,0.000384,120]
[325014700,1714504261539,-154.64623115,0.00038405,7]
[325014702,1714504261548,-153.21482082,0.00038408,7]
[325014704,1714504261557,-446.83455771,0.00038419,7]
[325014706,1714504261567,-629.7,0.00038436,14]
[325014708,1714504261576,-1746.92998369,0.00038437,7]
[325014710,1714504261586,-152.78647308,0.0003844,7]
[325014713,1714504261595,-498.28881146,0.0003845,8]
[325014715,1714504261605,-152.78647308,0.00038459,7]
[325014717,1714504261614,-153.21482082,0.00038493,7]
[325014719,1714504261624,-156.9684628,0.00038572,7]
[325014721,1714504261633,-153.89720645,0.00038579,7]
[325014723,1714504261644,-154.64623115,0.00038595,7]
[325014724,1714504261653,-377.0,0.0003863,14]
[325014727,1714504261662,-769.2,0.00038649,30]
[325014729,1714504261671,-153.0,0.0003866,2]
[325014731,1714504261681,-153.0,0.0003866,2]
[325014732,1714504261691,-153.0,0.0003866,2]
[325014735,1714504261700,-153.0,0.0003866,2]
[325014737,1714504261710,-153.0,0.0003866,2]
[325014739,1714504261719,-153.0,0.0003866,2]
[325014741,1714504261728,-153.0,0.0003866,2]
[325014743,1714504261738,-153.0,0.0003866,2]
[325014745,1714504261747,-153.0,0.0003866,2]
[325014747,1714504261756,-153.0,0.0003866,2]
[325014749,1714504261766,-153.0,0.0003866,2]
[325014751,1714504261775,-153.0,0.0003866,2]
[325014753,1714504261785,-153.0,0.0003866,2]
[325014755,1714504261795,-153.0,0.0003866,2]
[325014757,1714504261804,-153.0,0.0003866,2]
[325014759,1714504261813,-153.0,0.0003866,2]
[325014761,1714504261822,-153.21482082,0.00038675,7]
[325014763,1714504261831,-446.83455771,0.00038742,7]
[325014765,1714504261840,-154.64623115,0.00038743,7]
[325014767,1714504261850,-446.83455771,0.00038757,7]
[325014769,1714504261860,-152.78647308,0.0003877,7]
[325014771,1714504261869,-3508.38,0.00038779,6]
[325014773,1714504261879,-152.78647308,0.00038795,7]
[325014775,1714504261887,-446.83455771,0.00038798,7]
[325014777,1714504261897,-154.64623115,0.00038817,7]
[325014779,1714504261906,-152.78647308,0.00038899,7]
[325014781,1714504261918,-1203.1,0.00038899,64]
[325014783,1714504261928,-1203.1,0.00038899,64]
[325014785,1714504261937,-1203.1,0.00038899,64]
[325014787,1714504261946,-1203.1,0.00038899,64]
[325014789,1714504261955,-1203.21695924,0.00038899,64]
[325014791,1714504261966,-50559.18199845,0.000389,14]
[325014812,1714504262153,-500.0,0.0003178,2]
[325014814,1714504262162,-500.0,0.0003178,2]
[325014816,1714504262172,-500.0,0.00032054,2]
[325014818,1714504262181,-500.0,0.00032328,2]
[325014820,1714504262190,-500.0,0.00032602,2]
[325014822,1714504262199,-765.89348388,0.000389,14]
[325014824,1714504262210,-2478.09096799,0.000389,14]
[325014834,1714504262286,756.81853789,0.00025,2]
[325014838,1714504262313,-313.7172,0.00031779,4]
[325014902,1714504262907,191.54103763,0.00022,2]
[325016340,1714504278264,756.81853789,0.00025,2]
[325017736,1714504292703,250.0,0.00028749,2]
[325018426,1714504300244,756.81853789,0.00025,2]
[325019983,1714504316420,756.81853789,0.00025,2]
[325020397,1714504325754,166.666666,0.00028054,2]
[325020398,1714504325982,166.666666,0.00028819,2]
[325020399,1714504326282,166.666666,0.00029584,2]
[325020400,1714504326529,166.666666,0.00030349,2]
[325020401,1714504326742,166.666666,0.00031114,2]
[325020403,1714504336248,756.81853789,0.00025,2]
[325020493,1714505141124,-160.534766,0.00020116,2]
[325020494,1714505141144,-977.06404337,0.00020162,2]
[325020499,1714505233172,-209.384491,0.00018739,2]
[325020500,1714505233193,-6051.01475804,0.00020161,2]
[325020501,1714505233218,-302.238867,0.00020162,2]
[325020551,1714505328526,193.8405085,9.999e-05,2]
[325020554,1714505345398,-166.666666,0.00018739,2]
[325020555,1714505345419,-928.07428214,0.00019152,2]
[325020556,1714505345440,-59218.78804834,0.00020159,2]
[325020557,1714505345461,-638.34852538,0.0002016,2]
[325020558,1714505345481,-1202.83854325,0.0002016,2]
[325020559,1714505345500,-884.2224895,0.0002016,2]
[325020560,1714505345519,-13836.73010652,0.0002016,2]
[325020561,1714505345538,-155.3563839,0.0002016,2]
[325020562,1714505345558,-475.03872929,0.0002016,2]
[325020563,1714505345577,-1621.09215219,0.0002016,2]
[325020564,1714505345597,-241.71320654,0.0002016,2]
[325020565,1714505345618,-193.58690566,0.0002016,2]
[325020566,1714505345637,-520.32045227,0.00020161,2]
[325020567,1714505345662,-275.71,0.00020161,2]
[325020568,1714505345682,-24900.0,0.00020163,2]
[325020569,1714505345702,-162.87437959,0.00020802,2]
[325020570,1714505345721,-386.0,0.00020902,3]
[325020571,1714505345740,-193.0,0.00020902,3]
[325020572,1714505345760,-579.05,0.00020902,3]
[325020573,1714505345779,-955.70568899,0.00020911,2]
[325020574,1714505345800,-260.51204675,0.00020912,2]
[325020575,1714505345820,-67426.19859378,0.00020912,2]
[325020576,1714505345840,-166.666666,0.00021918,2]
[325020577,1714505345861,-772.0,0.00022272,3]
[325020578,1714505345882,-386.0,0.00022272,3]
[325020579,1714505345902,-166.666666,0.00022431,2]
[325020580,1714505345923,-246.679875,0.00022466,2]
[325020581,1714505345943,-166.666666,0.00022944,2]
[325020582,1714505345963,-166.666666,0.00023456,2]
[325020583,1714505345984,-166.666666,0.00023969,2]
[325020584,1714505346004,-166.666666,0.00024482,2]
[325020585,1714505346026,-500.0,0.00024657,2]
[325020586,1714505346046,-6151.0,0.00024999,4]
[325020587,1714505346066,-505.77078806,0.00025,2]
[325020588,1714505346086,-162.87437959,0.00027616,2]